[Event "Romanian Superleague 2022"]
[Site "Oradea"]
[Date "2022.09.24"]
[Round "4.15"]
[White "Secheres, Adrian-Simion"]
[Black "Bonte, Andrei-Mihai"]
[Result "0-1"]
[ECO "D45"]
[WhiteElo "2375"]
[BlackElo "2339"]
[Annotator "TA"]
[PlyCount "74"]
[EventDate "2022.09.21"]
[EventType "team-tourn"]
[EventCountry "ROU"]
[SourceTitle "playchess.com"]
[Source "ChessBase"]
[SourceQuality "1"]
[TimeControl "40/5400+30:1800+30"]

{[%evp 13,74,20,16,20,19,20,17,21,42,25,49,45,41,10,25,19,18,-7,0,0,0,7,4,0,20,20,18,16,19,1,1,1,1,1,31,28,23,29,32,28,34,-4,-2,-25,-23,-41,-47,-43,-36,-58,-37,-164,-166,-255,-249,-252,-262,-253,-177,-414,-377,-375,-376]} 1. d4 {[%emt 0:00:04]} d5 {[%emt 0:04:34]} 2. c4 {[%emt 0:00:27]} c6 {[%emt 0:00:12]} 3. Nc3 {[%emt 0:00:24]} Nf6 {[%emt 0:00:06]} 4. Nf3 {[%emt 0:00:41]} e6 {[%emt 0:00:09]} 5. e3 {[%emt 0:00:35]} Nbd7 {[%emt 0:00:09]} 6. Qc2 {[%emt 0:00:07]} b6 {[%emt 0:02:06]} 7. Bd3 {[%emt 0:05:38]} Bb7 {[%emt 0:00:38]} 8. O-O {[%emt 0:02:12] D45: Semi-Slav: 5 e3.} Bb4 {[%emt 0:11:15]} 9. a3 {[%emt 0:04:01]} dxc4 {[%emt 0:02:08]} (9... Be7 {is interesting.} 10. b3 c5 11. cxd5 exd5 12. Ne5 O-O) 10. Bxc4 {[%emt 0:00:41] The position is equal.} Bxc3 {[%emt 0:00:08]} 11. Qxc3 {[%emt 0:11:37] [#]} c5 $146 {[%emt 0:12:24]} ({Predecessor:} 11... O-O 12. Rd1 Qe7 13. b4 c5 14. Ne1 Rfc8 15. dxc5 bxc5 16. Be2 Ne4 17. Qb2 cxb4 18. Qxb4 {0-1 (40) Vandervorst,J (2076)-Nadin Belkhodja,S Le Touquet 1999}) 12. dxc5 {[%emt 0:04:53]} Nxc5 {[%emt 0:00:26]} 13. b4 {[%emt 0:02:15]} Nce4 {[%emt 0:00:32]} 14. Bb5+ {[%emt 0:04:32]} Ke7 {[%emt 0:01:13]} 15. Qb3 {[%emt 0:09:57]} Rc8 {[%emt 0:03:51]} 16. Bb2 {[%emt 0:05:54] Prevents Nc3.} Qd5 {[%emt 0:04:12]} 17. Qxd5 {[%emt 0:05:11]} Nxd5 {[%emt 0:02:20] Pair of Knights!} 18. Rfc1 {[%emt 0:06:24]} Ndc3 {[%emt 0:02:43]} 19. Bf1 {[%emt 0:08:31]} f6 {[%emt 0:04:10]} 20. a4 {[%emt 0:01:09]} Rc7 {[%emt 0:07:07]} 21. Nd4 {[%emt 0:05:14] [#] Black must now prevent f3.} Rhc8 $1 {[%emt 0:06:30]} 22. f3 {[%emt 0:04:17]} Nd2 {[%emt 0:14:27]} 23. e4 {[%emt 0:00:45]} g6 {[%emt 0:03:54]} 24. Bxc3 {[%emt 0:02:58]} Rxc3 {[%emt 0:02:55]} 25. Rxc3 {[%emt 0:00:53]} Rxc3 {[%emt 0:00:03]} 26. Nb5 {[%emt 0:03:49][%csl LRa7,LRc3]} Rb3 {[%emt 0:03:13]} 27. Nxa7 {[%emt 0:01:32]} (27. Rc1 {looks sharper.} a6 28. Rc7+ Kd8 29. Rxb7 Rb1 30. Kf2) 27... Nxf1 {[%emt 0:01:22]} 28. Kxf1 {[%emt 0:01:28]} Rxb4 $14 {[%emt 0:00:06][%mdl 4096] Endgame KRB-KRN} 29. a5 {[%emt 0:00:10]} bxa5 {[%emt 0:00:52]} 30. Rxa5 {[%emt 0:00:06]} Kd7 {[%emt 0:00:17] Strongly threatening ...Kc7.} 31. Ra3 {[%emt 0:02:16]} Rb6 {[%emt 0:03:04][%cal Bb4b6,Bb6b2,Bb2c2][%mdl 32] And now ...Kc7 would win.} 32. Kf2 {[%emt 0:01:26] [#] Loses the game.} ({White must play} 32. Rc3 $1 $15) 32... Kc7 $1 $19 {[%emt 0:00:20]} 33. Ra5 {[%emt 0:02:41]} (33. Kg3 $142) 33... Rb2+ {[%emt 0:02:08]} 34. Kg3 {[%emt 0:00:08]} Kb6 {[%emt 0:01:06] Against Nb5} 35. Ra1 {[%emt 0:00:24]} Rc2 {[%emt 0:00:28]} 36. e5 $2 {[%emt 0:00:34]} (36. Rd1 {keeps fighting.}) 36... fxe5 {[%emt 0:01:19]} 37. Rd1 {[%emt 0:01:00]} Bd5 {[%emt 0:01:02] Weighted Error Value: White=0.25 (precise) /Black=0.08 (flawless)} 0-1

[Event "Romanian Superleague 2022"]
[Site "Oradea"]
[Date "2022.09.24"]
[Round "4.16"]
[White "Gilea, Lucian"]
[Black "Filip, Andrei"]
[Result "1/2-1/2"]
[ECO "D24"]
[WhiteElo "2278"]
[BlackElo "2356"]
[Annotator "TA"]
[PlyCount "73"]
[EventDate "2022.09.21"]
[EventType "team-tourn"]
[EventCountry "ROU"]
[SourceTitle "playchess.com"]
[Source "ChessBase"]
[SourceQuality "1"]
[TimeControl "40/5400+30:1800+30"]

{[%evp 10,73,-35,-42,-24,-34,-29,-61,-27,-26,23,23,13,22,81,14,25,20,34,26,28,12,7,-4,-5,-5,-7,-7,-2,-12,11,3,3,5,5,5,19,0,0,4,10,0,11,0,17,11,20,13,20,26,18,0,30,8,9,0,60,61,53,47,45,50,50,47,62,39]} 1. d4 {[%emt 0:00:03]} d5 {[%emt 0:00:11]} 2. c4 {[%emt 0:00:08]} dxc4 {[%emt 0:00:07]} 3. Nf3 {[%emt 0:00:07]} Nf6 {[%emt 0:00:06]} 4. Nc3 {[%emt 0:02:41]} a6 {[%emt 0:00:09]} 5. a4 {[%emt 0:00:04]} Nc6 {[%emt 0:01:52]} 6. Bg5 {[%emt 0:15:15]} Bg4 {[%emt 0:27:08] D24: Queen's Gambit Accepted: 3 Nf3 Nf6 4 Nc3.} 7. e3 {[%emt 0:04:35]} Na5 $1 {[%emt 0:04:21]} 8. h3 {[%emt 0:08:43]} Bh5 {[%emt 0:02:07][%cal Oc7c5] Black is slightly better.} (8... Bxf3 $5 9. Qxf3 e6 $11) 9. Be2 {[%emt 0:15:30]} e6 {[%emt 0:10:45]} (9... Bxf3 {should be considered.} 10. Bxf3 c6) 10. Ne5 $11 {[%emt 0:03:12][%csl LRc4,LRh5]} Bxe2 {[%emt 0:01:55]} 11. Qxe2 {[%emt 0:00:12] [#]} c5 $146 {[%emt 0:11:58] [#]} (11... c6 $11 {remains equal.}) ({Predecessor:} 11... Be7 12. O-O Nd5 13. Qf3 O-O 14. Nxd5 Bxg5 15. Nc3 Bf6 16. Rad1 Bxe5 17. dxe5 Qg5 {½-½ (51) Sikorska,D-Gola,K (1972) Sielpa 2004}) 12. Rd1 {[%emt 0:12:43] White is much more active. The black rooks are badly placed.} ({Much worse is} 12. Nxc4 $6 cxd4 13. Rd1 Nxc4 14. Qxc4 Be7 $11) ({Better is} 12. d5 $1 $16 {[%cal Rd5e6] Strongly threatening dxe6.} Qb6 13. Bxf6 gxf6 14. Nxc4 (14. Ng4 O-O-O $17) 14... Nxc4 15. Qxc4) 12... Qc7 {[%emt 0:03:03]} 13. Nxc4 {[%emt 0:03:07] Bf4 is the strong threat.} cxd4 {[%emt 0:05:50]} 14. Rxd4 {[%emt 0:01:01]} Nb3 {[%emt 0:01:53]} 15. Rd1 {[%emt 0:14:59]} Rc8 {[%emt 0:00:51]} 16. Nd2 {[%emt 0:00:01]} Nxd2 {[%emt 0:02:22]} 17. Rxd2 {[%emt 0:01:40]} Be7 {[%emt 0:05:51]} 18. O-O {[%emt 0:00:42]} O-O {[%emt 0:00:07]} 19. Rfd1 {[%emt 0:01:09]} Qe5 {[%emt 0:03:54]} 20. Bf4 {[%emt 0:04:03]} Qa5 {[%emt 0:01:00]} 21. Bd6 {[%emt 0:00:42]} Bxd6 {[%emt 0:00:24]} 22. Rxd6 {[%emt 0:00:01]} h6 {[%emt 0:03:58]} 23. R6d4 {[%emt 0:02:51]} Qb6 {[%emt 0:00:44]} 24. Qd2 {[%emt 0:00:39]} Qb3 {[%emt 0:01:36]} 25. Qe2 {[%emt 0:00:29]} Rfe8 {[%emt 0:03:30]} 26. Qd2 {[%emt 0:01:32]} e5 {[%emt 0:01:38]} 27. Rd6 {[%emt 0:00:14]} Qb4 {[%emt 0:01:05]} 28. Qe2 {[%emt 0:00:45]} Ne4 {[%emt 0:01:47]} 29. Nxe4 {[%emt 0:00:27]} Qxe4 {[%emt 0:00:06]} 30. Rd7 {[%emt 0:01:30]} Rc2 {[%emt 0:01:01]} 31. Qh5 {[%emt 0:00:39]} Rf8 {[%emt 0:02:05]} 32. Rd8 {[%emt 0:02:42] [#] Black must now prevent R1d7.} Rc8 {[%emt 0:00:11]} (32... Rxb2 $11 33. R1d3 Rb1+ 34. Kh2 Rb2) 33. Rxc8 $14 {[%emt 0:00:18] White is slightly better.} Rxc8 {[%emt 0:00:01]} 34. Rd7 {[%emt 0:00:20]} Rf8 {[%emt 0:00:11]} 35. Qd1 {[%emt 0:00:37]} Qc6 {[%emt 0:01:36]} 36. b4 {[%emt 0:01:24]} Rc8 {[%emt 0:00:31]} 37. Kh2 {[%emt 0:01:01] Weighted Error Value: White=0.09 (flawless) /Black=0.13 (very precise)} 1/2-1/2

[Event "Romanian Superleague 2022"]
[Site "Oradea"]
[Date "2022.09.24"]
[Round "4.17"]
[White "Nastore, Pavel-Alexandru"]
[Black "Ognean, Mihnea-Ionut"]
[Result "0-1"]
[ECO "B17"]
[WhiteElo "2279"]
[BlackElo "2303"]
[Annotator "TA"]
[PlyCount "80"]
[EventDate "2022.09.21"]
[EventType "team-tourn"]
[EventCountry "ROU"]
[SourceTitle "playchess.com"]
[Source "ChessBase"]
[SourceQuality "1"]
[TimeControl "40/5400+30:1800+30"]

{[%evp 9,80,27,31,34,34,12,4,4,3,11,15,0,0,0,4,14,10,-35,-35,-40,-41,-30,0,-66,-59,-72,-64,-43,-43,-49,-53,-77,-85,-100,-61,-61,-67,-65,-55,-89,-90,-120,-115,-112,-95,-102,-93,-112,-102,-193,-141,-135,-110,-115,-111,-156,-159,-232,-221,-515,-515,-515,-515,-549,-515,-544,-515,-554,-445,-472,-491,-464,-406]} 1. e4 {[%emt 0:00:07]} c6 {[%emt 0:00:11]} 2. d4 {[%emt 0:00:06]} d5 {[%emt 0:00:04]} 3. Nc3 {[%emt 0:00:05]} dxe4 {[%emt 0:00:06]} 4. Nxe4 {[%emt 0:00:04]} Nd7 {[%emt 0:01:06]} 5. Nf3 {[%emt 0:05:15]} Ngf6 {[%emt 0:00:32]} 6. Nxf6+ {[%emt 0:01:11] B17: Caro-Kann: Modern Line (4...Nd7).} exf6 {[%emt 0:03:53]} 7. Be3 {[%emt 0:00:47]} Bd6 {[%emt 0:01:19]} 8. Bd3 {[%emt 0:00:05] The position is equal.} O-O {[%emt 0:01:03]} 9. O-O {[%emt 0:00:18]} Re8 {[%emt 0:00:15]} 10. c4 {[%emt 0:00:34]} Nf8 {[%emt 0:00:36]} 11. Qc2 {[%emt 0:03:58]} Bc7 {[%emt 0:13:29]} 12. h3 {[%emt 0:03:03]} Be6 {[%emt 0:08:50][%cal Bc8e6,Be6d5,Bd5c6,Bc6a4][%mdl 32]} 13. d5 {[%emt 0:53:11]} cxd5 {[%emt 0:00:20]} 14. cxd5 {[%emt 0:00:01]} Bxd5 {[%emt 0:00:43]} 15. Rfd1 {[%emt 0:00:50] [#] Black must now prevent Bc4.} Qc8 $146 {[%emt 0:17:21]} ({Predecessor:} 15... Rc8 16. Qa4 Bc6 17. Qxa7 Qe7 18. Qc5 Qxc5 19. Bxc5 Bxf3 20. gxf3 Ne6 21. Ba3 Nf4 {½-½ (59) Troselj,I (1878)-Vujnovic,P (2052) Rijeka 2019}) 16. Nd4 {[%emt 0:12:13]} ({Better is} 16. Rac1 $11 Bxf3 17. gxf3) 16... Bb6 $15 {[%emt 0:01:38]} 17. Qa4 {[%emt 0:00:14]} Qb8 {[%emt 0:02:27][%cal Oe8e3]} 18. Nf5 {[%emt 0:04:19][%cal Bd4f5,Bf5e3,Be3c4,Bc4d6][%mdl 32]} Bxe3 {[%emt 0:00:09]} 19. Nxe3 {[%emt 0:00:04]} Bc6 {[%emt 0:06:16]} 20. Qg4 {[%emt 0:00:29]} Qe5 {[%emt 0:02:55]} 21. Nc4 {[%emt 0:02:44]} Qe6 $40 {[%emt 0:02:59][%mdl 128] Black is up to no good.} 22. Nd6 {[%emt 0:02:34]} Qxg4 {[%emt 0:00:36]} 23. hxg4 {[%emt 0:00:05]} Re7 {[%emt 0:03:13]} 24. b4 {[%emt 0:01:07]} Ba4 {[%emt 0:05:11]} 25. Rd2 {[%emt 0:00:05]} Rd8 {[%emt 0:00:39] [#] ...Red7 is the strong threat.} 26. Bc4 {[%emt 0:01:35][%cal Od6f5]} Ne6 {[%emt 0:00:07] Threatens to win with ...Red7.} 27. Re1 {[%emt 0:03:20]} Kf8 {[%emt 0:00:05][%cal Ob7b5]} 28. Rd3 {[%emt 0:04:28]} g6 {[%emt 0:06:05]} 29. Ra3 {[%emt 0:01:23]} (29. Ree3 $17) 29... Rxd6 {[%emt 0:00:52]} (29... Bc6 $19 30. Nb5 a6) 30. Rxa4 $17 {[%emt 0:00:01]} b6 {[%emt 0:00:14]} 31. Bb3 {[%emt 0:01:10]} Rc7 {[%emt 0:05:00]} 32. f3 {[%emt 0:00:32]} Nd4 {[%emt 0:03:08]} 33. Bd1 {[%emt 0:00:28]} (33. Ra6 $17) 33... Nb5 $19 {[%emt 0:03:08]} 34. Be2 $2 {[%emt 0:00:06]} (34. Bb3) 34... Re7 {[%emt 0:00:44] Black is clearly winning.} 35. Bxb5 {[%emt 0:00:52] aiming for Rxe7.} Rxe1+ {[%emt 0:00:05] KRR-KRB} 36. Kf2 {[%emt 0:00:03]} Re7 {[%emt 0:00:16]} 37. Bc4 {[%emt 0:00:04]} Rd4 {[%emt 0:00:35]} 38. Bb3 {[%emt 0:00:13]} a5 {[%emt 0:01:08]} 39. bxa5 {[%emt 0:00:08]} Rxa4 {[%emt 0:00:04]} 40. Bxa4 {[%emt 0:00:00]} bxa5 {[%emt 0:00:00] Weighted Error Value: White=0.26 (precise) /Black=0.11 (very precise)} 0-1

[Event "Romanian Superleague 2022"]
[Site "Oradea"]
[Date "2022.09.24"]
[Round "4.18"]
[White "Ileana, George"]
[Black "Carmaciu, Lucian-Catalin"]
[Result "1-0"]
[ECO "B36"]
[WhiteElo "2301"]
[BlackElo "2376"]
[Annotator "TA"]
[PlyCount "79"]
[EventDate "2022.09.21"]
[EventType "team-tourn"]
[EventCountry "ROU"]
[SourceTitle "playchess.com"]
[Source "ChessBase"]
[SourceQuality "1"]
[TimeControl "40/5400+30:1800+30"]

{[%evp 17,79,31,35,37,54,34,48,37,94,51,47,35,38,25,21,17,52,50,89,80,79,79,86,89,138,7,160,100,95,87,85,66,69,29,131,175,488,471,851,846,842,830,808,785,1320,1049,1322,1317,1314,1310,1282,1273,1238,856,856,856,856,856,849,849,29995,29986,29995,29996]} 1. e4 {[%emt 0:00:13]} c5 {[%emt 0:00:10]} 2. Nf3 {[%emt 0:00:06]} Nc6 {[%emt 0:00:37]} 3. d4 {[%emt 0:00:07]} cxd4 {[%emt 0:00:09]} 4. Nxd4 {[%emt 0:00:06]} g6 {[%emt 0:00:09]} 5. c4 {[%emt 0:01:11]} Nf6 {[%emt 0:00:16]} 6. Nc3 {[%emt 0:00:04]} d6 {[%emt 0:00:09]} 7. Be2 {[%emt 0:04:39]} Nxd4 {[%emt 0:00:33]} 8. Qxd4 {[%emt 0:00:08]} Bg7 {[%emt 0:00:05]} 9. O-O {[%emt 0:01:06]} O-O {[%emt 0:00:10]} 10. Qd3 {[%emt 0:02:08] B36: Sicilian: Maroczy Bind: Gurgenidze System.} a5 {[%emt 0:00:37]} 11. Be3 {[%emt 0:00:40]} a4 {[%emt 0:02:57]} 12. Bd4 {[%emt 0:00:50] White is slightly better.} Nd7 {[%emt 0:01:47]} (12... Qa5 $14) 13. Bxg7 {[%emt 0:01:22] White is more active.} Kxg7 {[%emt 0:00:06] [#]} 14. Kh1 $146 {[%emt 0:00:28]} ({Predecessor:} 14. Rad1 Nc5 15. Qe3 f6 16. f4 Be6 17. e5 fxe5 18. fxe5 Rxf1+ 19. Bxf1 Qb6 20. exd6 exd6 {1-0 (28) Cuenca Jimenez,J (2524)-Padeiro,J (2227) Peniche 2021}) 14... Nc5 {[%emt 0:00:33]} 15. Qd4+ {[%emt 0:00:43]} e5 {[%emt 0:01:06]} 16. Qd2 {[%emt 0:00:47]} Be6 {[%emt 0:03:45]} 17. Rad1 {[%emt 0:03:20]} Ra6 {[%emt 0:00:17]} 18. f4 {[%emt 0:00:07][%cal Bf2f4,Bf4f5][%mdl 32] aiming for fxe5.} f6 {[%emt 0:00:33]} 19. f5 {[%emt 0:01:02]} Bg8 {[%emt 0:08:52]} 20. Qe3 {[%emt 0:00:59]} Qb6 {[%emt 0:02:11]} ({Better is} 20... Rc6) 21. Rd2 {[%emt 0:03:01]} (21. h4 $16) 21... Qb4 $2 {[%emt 0:00:45]} ({Black should play} 21... a3 $1 $11) 22. Rf3 {[%emt 0:24:59]} (22. g4 $142 $1) 22... Bxc4 $16 {[%emt 0:07:50]} 23. fxg6 {[%emt 0:02:53]} hxg6 {[%emt 0:01:41]} 24. Rh3 {[%emt 0:02:55]} g5 {[%emt 0:01:30]} 25. Bg4 {[%emt 0:09:36] Strongly threatening Bf5.} (25. a3 $5 {[%cal Ra3b4]} Qb3 26. Qf2 Bxe2 27. Qf5 $16 (27. Rxe2 Qf7 $15)) 25... Be6 {[%emt 0:15:57] [#] White leaves nothing to chance now.} (25... Bg8 $1 $11 {keeps the balance.}) 26. Qf3 $1 $40 {[%emt 0:00:36][%mdl 128] Black must now prevent Bxe6. Black is in trouble.} Bxg4 {[%emt 0:12:45]} (26... f5 {is a better chance.} 27. exf5 Bg8) 27. Qxg4 $18 {[%emt 0:00:07] Intending Qh5 and mate.} Rh8 {[%emt 0:06:37] Against Qh5} (27... Qc4 $142 28. Qf5 Qg8) 28. Rxh8 {[%emt 0:02:07]} Kxh8 {[%emt 0:00:01]} 29. h4 {[%emt 0:00:24]} Qc4 {[%emt 0:08:43]} 30. Rf2 {[%emt 0:01:27]} ({Weaker is} 30. hxg5 Qf1+ 31. Kh2 Qf4+ 32. Qxf4 exf4 $16) 30... d5 {[%emt 0:06:31]} 31. Qh5+ {[%emt 0:02:52]} Kg7 {[%emt 0:00:15]} 32. hxg5 {[%emt 0:01:28] White wants to mate with Qh6+.} Nxe4 {[%emt 0:02:00] [#]} 33. Qh6+ $1 {[%emt 0:00:28]} Kf7 {[%emt 0:01:48]} 34. g6+ {[%emt 0:00:47]} Ke7 {[%emt 0:04:44]} 35. Nxe4 {[%emt 0:00:22]} Qxe4 {[%emt 0:00:10]} 36. g7 {[%emt 0:00:21]} Qe1+ {[%emt 0:03:22]} 37. Kh2 {[%emt 0:00:07]} Qxf2 {[%emt 0:00:16]} 38. g8=Q {[%emt 0:00:13] Qhf8+ would kill now.} Kd6 {[%emt 0:00:46]} 39. Qgf8+ {[%emt 0:02:47]} Kc7 {[%emt 0:02:40]} 40. Qhg7+ {[%emt 0:00:00] Weighted Error Value: White=0.20 (precise) /Black=0.64} 1-0

[Event "Romanian Superleague 2022"]
[Site "Oradea"]
[Date "2022.09.24"]
[Round "4.19"]
[White "Dobre, Claudiu-Cristian"]
[Black "Sumets, Andrey"]
[Result "0-1"]
[ECO "D27"]
[WhiteElo "2268"]
[BlackElo "2513"]
[Annotator "TA"]
[PlyCount "90"]
[EventDate "2022.09.21"]
[EventType "team-tourn"]
[EventCountry "ROU"]
[SourceTitle "playchess.com"]
[Source "ChessBase"]
[SourceQuality "1"]
[TimeControl "40/5400+30:1800+30"]

{[%evp 15,90,18,14,25,21,16,20,17,25,10,24,17,26,37,39,13,20,0,15,0,0,0,0,-28,-37,-49,-55,-84,-91,-85,-93,-98,-83,-100,-95,-91,-98,-149,-150,-148,-150,-216,-152,-159,-163,-161,-161,-158,-157,-187,-187,-187,-185,-248,-226,-410,-341,-382,-356,-350,-346,-349,-341,-407,-404,-469,-469,-469,-469,-451,-462,-450,-340,-457,-449,-403,-389]} 1. c4 {[%emt 0:00:05]} e6 {[%emt 0:00:33]} 2. Nf3 {[%emt 0:00:08]} d5 {[%emt 0:00:17]} 3. b3 {[%emt 0:00:05]} Nf6 {[%emt 0:00:59]} 4. Bb2 {[%emt 0:00:07]} c5 {[%emt 0:02:37]} 5. e3 {[%emt 0:00:06]} dxc4 {[%emt 0:02:28]} 6. Bxc4 {[%emt 0:00:11]} a6 {[%emt 0:00:41]} 7. O-O {[%emt 0:00:14]} Be7 {[%emt 0:00:52]} 8. d4 {[%emt 0:21:41]} Nbd7 {[%emt 0:06:37]} 9. dxc5 {[%emt 0:13:07] D27: Queen's Gambit Accepted: Classical main line: 7 e4!? and 7 a4.} Bxc5 {[%emt 0:00:29]} 10. a4 {[%emt 0:08:30]} O-O {[%emt 0:00:11]} 11. a5 {[%emt 0:09:07] [#] The position is equal.} Qe7 $146 {[%emt 0:16:36]} ({Predecessor:} 11... b5 12. axb6 Bb7 13. Nc3 Nxb6 14. Bd3 Nbd7 15. Na4 Be7 16. Nd2 Nd5 17. Qb1 f5 {½-½ (62) Glinz,G (2399)-Hauenstein,H (2367) ICCF email 2017}) 12. Qc2 {[%emt 0:01:10]} h6 {[%emt 0:12:33]} 13. Rc1 {[%emt 0:02:26]} Rd8 {[%emt 0:03:52]} 14. Nbd2 {[%emt 0:07:19]} Bb4 {[%emt 0:05:30]} 15. Ne4 {[%emt 0:10:17]} Nd5 {[%emt 0:17:59]} 16. Ng3 {[%emt 0:01:55] [#] Black must now prevent Bxd5.} N7f6 {[%emt 0:01:31]} 17. e4 {[%emt 0:07:54]} Nf4 {[%emt 0:00:50]} 18. e5 {[%emt 0:00:34]} N6d5 {[%emt 0:00:52]} 19. Qe4 {[%emt 0:01:01]} Bd7 {[%emt 0:02:35]} 20. Nd4 {[%emt 0:05:37]} Be8 {[%emt 0:05:10]} 21. Rc2 {[%emt 0:07:52]} Rac8 {[%emt 0:01:35]} 22. Qf3 {[%emt 0:00:39]} Rc5 {[%emt 0:08:22]} 23. Bxd5 {[%emt 0:01:12]} Nxd5 {[%emt 0:00:04]} 24. Rxc5 {[%emt 0:00:31]} Qxc5 {[%emt 0:00:56]} (24... Bxc5 $6 25. Ne4 $15) 25. Ne4 {[%emt 0:00:34] Prevents Nc3.} Qc7 {[%emt 0:00:18]} 26. Nd6 {[%emt 0:00:34]} ({Better is} 26. Qg3) 26... Bxd6 $17 {[%emt 0:01:04]} (26... Bxa5 27. Nxb7 Qxb7 28. Rxa5 $17) 27. exd6 {[%emt 0:00:07]} Qxd6 {[%emt 0:00:09]} (27... Rxd6 28. Rc1 Qd8 29. h3 $17) 28. Rc1 {[%emt 0:00:45]} (28. h3 $17 {keeps fighting.}) 28... Qf4 {[%emt 0:01:44]} 29. g3 {[%emt 0:00:15]} Qd2 {[%emt 0:00:55][%csl LRa5,LRb2]} 30. Qe2 {[%emt 0:00:53]} Qxe2 {[%emt 0:01:07]} (30... Qxa5 31. Nxe6 fxe6 32. Qxe6+ (32. Qe5 $2 Rd7 $19) 32... Kf8 33. Rc4 $15 (33. Qe5 $2 Rd7 $19)) 31. Nxe2 {[%emt 0:00:04] [#]} Nb4 $1 {[%emt 0:00:32]} 32. Ba3 {[%emt 0:00:53]} Nc6 {[%emt 0:00:44]} 33. Bc5 {[%emt 0:00:10]} Rd2 {[%emt 0:00:36]} ({Not} 33... Nxa5 34. Bb6 Rd5 35. Rc8 $11) 34. Nf4 {[%emt 0:00:37]} (34. Nc3 $142) 34... e5 {[%emt 0:01:06]} ({Stronger than} 34... Nxa5 35. Bb4 Nxb3 36. Rc8 $11) 35. Nh5 {[%emt 0:00:47]} (35. Ng2 {is a better defense.}) 35... Rb2 {[%emt 0:01:01]} 36. b4 {[%emt 0:00:26]} f6 {[%emt 0:00:10]} 37. g4 {[%emt 0:00:15]} Bxh5 {[%emt 0:00:44]} ({Don't blunder} 37... Nxb4 $2 38. Ng3) 38. gxh5 {[%emt 0:00:05]} Nxb4 $19 {[%emt 0:00:12][%mdl 4096] Endgame KRB-KRN} 39. Rd1 {[%emt 0:00:31]} Nc6 {[%emt 0:00:35] Inhibits Rd8+.} 40. Rd7 {[%emt 0:00:00]} Rb5 {[%emt 0:00:00]} 41. Bb6 {[%emt 0:02:58]} Nxa5 {[%emt 0:01:46]} 42. Bxa5 {[%emt 0:00:18]} Rxa5 {[%emt 0:00:06]} 43. Rxb7 {[%emt 0:00:04]} e4 {[%emt 0:00:38]} 44. Ra7 {[%emt 0:00:12]} Rg5+ {[%emt 0:00:11]} 45. Kh1 {[%emt 0:00:04]} a5 {[%emt 0:00:04] Weighted Error Value: White=0.24 (precise) /Black=0.09 (flawless)} 0-1

[Event "Romanian Superleague 2022"]
[Site "Oradea"]
[Date "2022.09.24"]
[Round "4.20"]
[White "Cioara, Andrei-Nestor"]
[Black "Padurariu, Mihai-Edward"]
[Result "1/2-1/2"]
[ECO "A36"]
[WhiteElo "2407"]
[BlackElo "2263"]
[Annotator "TA"]
[PlyCount "49"]
[EventDate "2022.09.21"]
[EventType "team-tourn"]
[EventCountry "ROU"]
[SourceTitle "playchess.com"]
[Source "ChessBase"]
[SourceQuality "1"]
[TimeControl "40/5400+30:1800+30"]

{[%evp 19,49,9,16,13,41,36,58,41,28,33,39,12,22,0,26,0,0,0,0,-2,0,-1,0,-6,28,0,0,0,0,0,0,0]} 1. c4 {[%emt 0:00:02]} e5 {[%emt 0:03:05]} 2. Nc3 {[%emt 0:00:30]} c5 {[%emt 0:00:15]} 3. g3 {[%emt 0:07:19]} Nc6 {[%emt 0:00:14]} 4. Bg2 {[%emt 0:00:04]} g6 {[%emt 0:01:30]} 5. d3 {[%emt 0:03:04]} Bg7 {[%emt 0:02:02]} 6. Rb1 {[%emt 0:16:53]} d6 {[%emt 0:13:15]} 7. a3 {[%emt 0:00:07]} a5 {[%emt 0:01:50]} 8. e3 {[%emt 0:01:47]} Nge7 {[%emt 0:01:18]} 9. Nge2 {[%emt 0:00:04]} Be6 {[%emt 0:01:56]} 10. O-O {[%emt 0:05:36]} O-O {[%emt 0:11:10]} 11. Nd5 {[%emt 0:00:30] A36: Symmetrical English vs ...g6: 4 Bg2 Bg7.} Rb8 {[%emt 0:01:46]} 12. Nec3 {[%emt 0:10:32]} f5 {[%emt 0:05:07]} 13. f4 {[%emt 0:01:05] White is slightly better.} Bf7 {[%emt 0:03:35]} 14. Bd2 {[%emt 0:01:17]} Kh8 {[%emt 0:04:39]} 15. Qa4 {[%emt 0:08:13] [#]} b6 $146 {[%emt 0:06:27]} ({Predecessor:} 15... Be8 16. Qb3 b6 17. Qc2 Bf7 18. Rfd1 Nxd5 19. Nxd5 Ne7 20. Nxe7 Qxe7 {1-0 (58) Augustyn,S (2173)-Madera,M (1937) Jastrzebia Gora 2018}) 16. Rfd1 {[%emt 0:11:16]} Nxd5 {[%emt 0:14:01]} 17. Nxd5 {[%emt 0:00:11]} Ne7 {[%emt 0:05:59]} 18. Nxe7 {[%emt 0:04:42]} Qxe7 {[%emt 0:00:01]} 19. b4 {[%emt 0:00:11]} axb4 {[%emt 0:00:53]} 20. axb4 {[%emt 0:00:02]} Rfd8 {[%emt 0:05:37]} 21. Qc2 {[%emt 0:13:30]} d5 {[%emt 0:03:48]} 22. cxd5 {[%emt 0:01:41]} Bxd5 {[%emt 0:00:51] The position is equal.} 23. bxc5 {[%emt 0:03:47] [#] Hoping for Bxd5.} Bxg2 {[%emt 0:00:32]} 24. Kxg2 {[%emt 0:00:01]} bxc5 {[%emt 0:00:43]} 25. Rxb8 {[%emt 0:10:36] Weighted Error Value: White=0.10 (very precise) /Black=0.09 (flawless)} 1/2-1/2